bitfinex/quotes_ETHUSD_20240819
["timestamp","ask_amount","ask_price","bid_price","bid_amount"]
[1724085866393,1.61034092,2584.7,2584.5,3.86921]
[1724085866891,1.61034092,2584.7,2584.5,7.124269]
[1724085867088,1.61034092,2584.7,2584.5,6.35034]
[1724085867288,1.61034092,2584.7,2584.6,3.86907]
[1724085867506,2.01856691,2584.9,2584.6,3.86907]
[1724085867507,1.61034092,2584.8,2584.6,3.86907]
[1724085867835,1.61034092,2584.8,2584.5,6.35041]
[1724085867977,3.86894,2584.7,2584.2,5.3988]
[1724085868181,7.96168092,2584.7,2584.2,3.0]
[1724085868728,3.86908,2584.6,2584.2,3.0]
[1724085869090,5.47942092,2584.6,2584.2,3.0]
[1724085869785,5.47972092,2584.4,2584.1,3.0]
[1724085870166,3.86966,2584.2,2583.7,6.1795]
[1724085870364,5.48000092,2584.2,2583.5,6.32662]
[1724085870477,5.48000092,2584.2,2583.6,0.387062]
[1724085870678,1.61034092,2584.1,2583.6,0.387062]
[1724085870878,5.48000092,2584.2,2583.7,3.8704]
[1724085871084,5.48000092,2584.2,2583.7,4.9287382]
[1724085871533,5.48000092,2584.2,2583.8,3.0]
[1724085872088,1.61034092,2584.2,2583.8,6.87016]
[1724085872414,1.61034092,2584.3,2584.0,3.86985]
[1724085872614,1.61034092,2584.3,2584.0,5.182312]
[1724085872941,1.61034092,2584.2,2584.0,5.182312]
[1724085873704,1.61034092,2584.2,2583.8,3.0]
[1724085874023,1.61034092,2584.2,2583.8,6.87024]
[1724085874336,1.61034092,2584.2,2583.8,10.74043]
[1724085874940,1.61034092,2584.2,2583.9,3.87003]
[1724085877805,1.61034092,2584.2,2583.8,6.87016]
[1724085878007,1.61034092,2584.1,2583.8,7.796836]
[1724085878260,1.61034092,2584.2,2583.8,7.796836]
[1724085878549,1.61034092,2584.1,2583.9,3.87011]
[1724085879449,1.61034092,2584.1,2583.8,7.796916]
[1724085880300,5.48024092,2584.1,2583.8,3.0]
[1724085880556,1.61034092,2584.0,2583.7,3.0]
[1724085880862,5.48031092,2584.0,2583.7,3.0]
[1724085881726,5.48053092,2583.9,2583.7,1.315757]
[1724085881913,3.87019,2583.9,2583.4,6.19725]
[1724085882113,5.48053092,2583.9,2583.5,3.8707]
[1724085882701,5.48053092,2583.9,2583.4,6.19725]
[1724085882702,2.4917,2583.8,2583.4,3.87075]
[1724085883037,2.4917,2583.8,2583.4,7.74155]
[1724085883238,2.4917,2583.8,2583.4,3.87075]
[1724085883555,5.48047092,2583.9,2583.4,3.87075]
[1724085883706,4.51294474,2584.0,2583.5,6.87063]
[1724085883707,7.97207092,2584.0,2583.5,6.87063]
[1724085885108,1.61034092,2584.1,2583.7,3.87028]
[1724085885305,1.61034092,2584.1,2583.6,3.8705]
[1724085885636,1.61034092,2584.1,2583.7,3.87028]
[1724085886347,1.61034092,2584.1,2583.8,3.87026]
[1724085886554,1.61034092,2584.1,2583.7,3.87041]
[1724085886857,5.48016092,2584.1,2583.7,3.87041]
[1724085887157,1.61034092,2584.0,2583.7,3.87041]
[1724085887449,1.61034092,2584.1,2583.8,3.87024]
[1724085887810,1.61034092,2584.0,2583.8,3.87024]
[1724085888034,1.61034092,2584.0,2583.7,3.87038]
[1724085888239,5.48017092,2584.1,2583.7,3.87038]
[1724085888964,3.87019,2583.9,2583.5,3.0]
[1724085889269,2.3967,2583.8,2583.5,3.0]
[1724085889414,2.3967,2583.8,2583.5,6.87069]
[1724085890559,2.3967,2583.8,2583.5,3.0]
[1724085890859,3.87042,2583.7,2583.4,3.0]
[1724085891237,2.3967,2583.8,2583.4,6.87081]
[1724085891648,9.35073092,2583.9,2583.4,6.87081]
[1724085891862,0.55,2583.8,2583.4,6.87081]
[1724085892232,1.61034092,2583.9,2583.6,3.87054]
[1724085892529,7.84971092,2584.0,2583.5,3.8706]
[1724085893131,7.84971092,2584.0,2583.5,7.74124]
[1724085893328,3.97974092,2584.0,2583.5,3.8706]
[1724085893578,1.61034092,2584.1,2583.7,3.87033]
[1724085893895,1.61034092,2584.1,2583.7,3.87031]
[1724085895553,1.61034092,2584.0,2583.7,7.74066]
[1724085895895,1.61034092,2584.1,2583.7,3.87031]
[1724085896270,1.61034092,2584.1,2583.8,3.87026]
[1724085896780,1.61034092,2584.0,2583.7,3.87039]
[1724085897182,1.61034092,2584.0,2583.6,0.93223]
[1724085897183,5.48033092,2584.0,2583.6,3.87054]
[1724085898198,2.4194,2583.8,2583.4,14.24074]
[1724085898699,5.48049092,2583.9,2583.5,3.87065]
[1724085899272,1.61034092,2583.9,2583.5,3.87065]
[1724085899686,7.89973092,2584.0,2583.5,3.87065]
[1724085900367,7.89973092,2584.0,2583.6,3.87047]
[1724085900783,7.89973092,2584.0,2583.5,5.681829]
[1724085900953,1.61034092,2583.9,2583.5,3.87069]
[1724085901182,5.48046092,2583.9,2583.5,3.87069]
[1724085901414,1.61034092,2583.9,2583.5,7.7413]
[1724085902086,6.28938,2584.0,2583.5,7.7413]
[1724085902087,7.89972092,2584.0,2583.5,3.87061]
[1724085902488,1.61034092,2584.0,2583.6,3.87055]
[1724085902683,1.61034092,2584.1,2583.7,3.87034]
[1724085903225,1.61034092,2584.1,2583.8,3.87025]
[1724085903385,1.61034092,2584.2,2583.9,3.87003]
[1724085903585,1.61034092,2584.2,2583.9,6.25493]
[1724085903940,1.61034092,2584.1,2584.0,3.86996]
[1724085904286,1.61034092,2584.2,2584.0,3.86996]
[1724085904507,2.0205912,2584.3,2584.0,3.86996]
[1724085904508,1.61034092,2584.1,2584.0,3.86996]
[1724085905331,1.61034092,2584.2,2584.0,3.86996]
[1724085905664,1.61034092,2584.1,2583.8,3.87014]
[1724085906018,5.48037092,2584.0,2583.5,3.87069]
[1724085906617,9.35043092,2584.0,2583.5,3.87069]
[1724085907060,5.48031092,2584.0,2583.6,3.87056]
[1724085907384,1.61034092,2584.0,2583.7,3.8704]
[1724085907680,1.61034092,2584.3,2584.0,2.2772]
[1724085907865,5.47989092,2584.3,2584.0,2.2772]
[1724085908054,1.61034092,2584.2,2583.9,3.87001]
[1724085909315,1.61034092,2584.2,2583.9,7.74004]
[1724085909514,1.61034092,2584.3,2584.1,3.86981]
[1724085911054,1.61034092,2584.3,2584.0,3.86996]
[1724085911259,1.61034092,2584.3,2583.9,3.87001]
[1724085911421,1.61034092,2584.3,2583.6,3.87048]
[1724085911422,7.74511092,2584.2,2583.6,3.87048]
[1724085911625,3.87003,2584.0,2583.7,3.0]
[1724085911837,3.87013,2583.9,2583.5,6.34699]
[1724085912061,6.13537,2583.8,2583.4,11.24084]
[1724085912351,3.87063,2583.6,2583.4,7.37]
[1724085912520,3.87063,2583.6,2582.9,7.37]
[1724085912521,7.74617092,2583.5,2582.9,7.37]
[1724085912816,9.35252092,2583.3,2582.9,7.37]
[1724085913020,1.61034092,2583.2,2582.9,7.37]
[1724085913317,1.61034092,2583.2,2582.6,2.4763]
[1724085913318,3.8714,2583.1,2582.6,2.4763]
[1724085913535,5.48174092,2583.1,2582.6,2.4763]
[1724085913751,5.48174092,2583.1,2582.6,6.34833]
[1724085914251,1.61034092,2583.1,2582.7,3.8719]
[1724085914622,5.48154092,2583.2,2582.6,10.855123]
[1724085914932,1.61034092,2583.1,2582.7,3.87187]
[1724085915137,1.61034092,2583.3,2582.8,3.87165]
[1724085915332,1.61034092,2583.2,2582.8,3.87165]
[1724085916588,3.87103,2583.3,2582.8,3.87165]
[1724085916589,5.48137092,2583.3,2582.8,3.87165]
[1724085917411,1.61034092,2583.2,2582.8,3.87165]
[1724085917567,1.61034092,2583.3,2582.8,3.87165]
[1724085917767,3.87103,2583.3,2582.8,4.9571303]
[1724085917960,5.48137092,2583.3,2582.8,3.87165]
[1724085918551,5.48137092,2583.3,2582.8,7.74329]
[1724085918893,3.87102,2583.3,2582.8,3.87164]
[1724085919094,7.85216092,2583.3,2582.7,2.4974]
[1724085919406,7.85216092,2583.3,2582.7,3.0]
[1724085919407,3.87155,2583.0,2582.7,3.0]
[1724085919553,3.87174,2582.9,2582.5,3.0]
[1724085919891,3.87155,2583.0,2582.5,3.0]
[1724085919892,7.74313,2583.0,2582.5,6.87219]
[1724085920109,3.87162,2582.9,2582.5,3.0]
[1724085921416,3.87155,2583.0,2582.5,6.8722]
[1724085921713,3.87127,2583.2,2582.6,3.87195]
[1724085921862,3.87133,2583.1,2582.6,3.87195]
[1724085923093,3.87133,2583.1,2582.5,5.061194]
[1724085923094,3.87149,2583.0,2582.5,6.8722]
[1724085923295,6.32733,2582.9,2582.5,6.8722]
[1724085924110,6.32733,2582.9,2582.5,3.8722]
[1724085924323,6.32733,2582.9,2582.3,11.2425]
[1724085924324,3.8719,2582.8,2582.3,11.2425]
[1724085924474,3.87194,2582.7,2582.3,3.8725]
[1724085924668,4.4219,2582.8,2582.3,3.8725]
[1724085925069,4.42185,2582.8,2582.3,3.8725]
[1724085925297,4.42185,2582.8,2582.3,3.87244]
[1724085925468,4.42185,2582.8,2582.3,7.74485]
[1724085925670,4.42185,2582.8,2582.3,8.765025]
[1724085925970,3.87159,2583.0,2582.6,2.4621]
[1724085926166,7.78751092,2583.2,2582.7,3.87184]
[1724085926167,5.48161092,2583.2,2582.7,3.87184]
[1724085926484,3.87127,2583.2,2582.7,3.87184]
[1724085927011,3.87132,2583.1,2582.7,3.87184]
[1724085928465,3.87146,2583.0,2582.6,2.4621]
[1724085928711,7.26712309,2583.1,2582.5,3.87208]
[1724085928915,3.87133,2583.1,2582.5,3.87208]
[1724085929123,3.87133,2583.1,2582.6,3.87204]
[1724085929281,3.87133,2583.1,2582.5,3.87208]
[1724085929282,4.42148,2583.0,2582.4,9.8069]
[1724085929466,4.42148,2583.0,2582.5,3.87213]
[1724085929672,4.42148,2583.0,2582.5,5.240023]
[1724085929893,4.42148,2583.0,2582.6,3.87206]
[1724085930100,6.3322,2582.9,2582.5,3.87219]
[1724085930691,3.8717,2582.9,2582.5,3.87219]
[1724085931138,3.8717,2582.9,2582.4,13.67924]
[1724085931359,3.87198,2582.7,2582.4,7.37]
[1724085932748,10.13312,2582.7,2582.4,7.37]
[1724085932957,2.3891,2582.7,2582.4,7.37]
[1724085933107,6.26103,2582.7,2582.4,7.37]
[1724085933455,3.87193,2582.7,2582.4,7.37]
[1724085933879,3.87193,2582.7,2582.3,3.87249]
[1724085934713,3.0392,2583.0,2582.4,0.626349]
[1724085934714,4.42158,2583.0,2582.4,0.626349]
[1724085934915,6.35404,2583.2,2582.8,3.87176]
[1724085935103,7.74221,2583.3,2582.8,3.87176]
[1724085935447,3.87119,2583.2,2582.8,3.87176]
[1724085935748,3.87119,2583.2,2582.7,2.4247]
[1724085935749,3.87134,2583.1,2582.7,6.29659]
[1724085936518,3.87119,2583.2,2582.8,3.87175]
[1724085937147,3.87119,2583.2,2582.7,6.2966]
[1724085937307,7.74244,2583.2,2582.7,6.926263]
[1724085937645,3.87132,2583.1,2582.6,3.87193]
[1724085939145,3.87147,2583.0,2582.6,3.87193]
[1724085941354,7.74304,2583.0,2582.5,6.22018]
[1724085942917,3.87168,2582.9,2582.5,6.22018]
[1724085943114,3.87197,2582.7,2582.3,10.37]
[1724085943350,3.87197,2582.7,2582.3,7.37]
[1724085944059,3.87197,2582.7,2582.3,11.24249]
[1724085945261,4.4218,2582.8,2582.3,15.1149]
[1724085945859,8.29367,2582.8,2582.3,3.87241]
[1724085946061,4.4218,2582.8,2582.2,3.87265]
[1724085946436,3.87202,2582.7,2582.2,3.87265]
[1724085947048,3.87202,2582.7,2582.3,3.8725]
[1724085948471,4.4218,2582.8,2582.3,7.74492]
[1724085948678,2.2993,2582.9,2582.4,3.87227]
[1724085948972,2.01453749,2583.3,2582.6,7.74398]
[1724085948973,3.87146,2583.0,2582.6,7.74398]
[1724085949275,2.357,2583.2,2582.8,3.8717]
[1724085949276,3.87116,2583.2,2582.8,3.8717]
[1724085949488,3.87103,2583.3,2582.9,0.38717]
[1724085949664,3.87103,2583.3,2582.8,3.87167]
[1724085949665,3.87117,2583.2,2582.8,3.87167]
[1724085950255,7.74246,2583.2,2582.7,3.87189]
[1724085950453,3.87133,2583.1,2582.7,4.878343]
[1724085950803,3.87147,2583.0,2582.6,3.87204]
[1724085951597,2.4554,2582.9,2582.4,3.87223]
[1724085951805,3.87178,2582.8,2582.5,3.0]
[1724085954767,3.87178,2582.8,2582.4,3.87236]
[1724085955510,3.87178,2582.8,2582.2,6.12467]
[1724085955660,3.87207,2582.6,2582.2,6.12467]
[1724085956210,2.2727,2582.5,2582.1,6.261887]
[1724085956356,2.2727,2582.5,2582.2,3.0]
[1724085956695,6.14506,2582.5,2582.2,3.0]
[1724085956997,7.75540092,2582.5,2582.1,3.0]
[1724085957552,1.61034092,2582.4,2582.1,3.0]
[1724085957751,3.87251,2582.3,2582.1,3.0]
[1724085958000,3.87251,2582.3,2581.9,3.0]
[1724085958497,3.87251,2582.3,2581.9,6.87311]
[1724085958498,5.48285092,2582.3,2581.9,6.87311]
[1724085959358,1.61034092,2582.4,2581.9,5.060327]
[1724085959657,1.61034092,2582.5,2582.3,3.87251]
[1724085960368,1.61034092,2582.5,2582.3,3.87244]
[1724085960571,1.61034092,2582.6,2582.3,0.615634]
[1724085960789,1.61034092,2582.6,2582.2,6.15655]
[1724085960790,1.61034092,2582.5,2582.2,3.87265]
[1724085961096,1.61034092,2582.5,2581.9,7.437827]
[1724085961097,6.24019,2582.4,2582.0,3.87295]
[1724085961404,2.16034092,2582.4,2582.1,6.87279]
[1724085961607,1.61034092,2582.5,2582.1,8.485108]
[1724085962100,1.61034092,2582.5,2582.2,3.87263]
[1724085963100,1.61034092,2582.5,2582.2,3.87255]
[1724085963272,1.61034092,2582.6,2582.4,3.87236]
[1724085965110,5.48241092,2582.6,2582.2,3.87255]
[1724085965320,1.61034092,2582.5,2582.1,6.8728]
[1724085965814,1.61034092,2582.4,2582.1,6.8728]
[1724085965982,5.48280092,2582.4,2582.1,3.0]
[1724085966202,2.59087295,2582.4,2582.0,3.0]
[1724085966387,2.59087295,2582.4,2581.7,3.87338]
[1724085966388,3.87281,2582.1,2581.7,3.87338]
[1724085966612,5.48315092,2582.1,2581.7,3.87338]
[1724085966805,1.61034092,2582.0,2581.7,3.87334]
[1724085967318,1.61034092,2582.0,2581.6,3.87348]
[1724085968127,7.74581,2582.1,2581.6,3.87348]
[1724085968128,7.74581,2582.1,2581.7,3.0]
[1724085968285,6.44663935,2582.3,2581.9,3.87311]
[1724085968485,6.44660935,2582.3,2581.8,6.23324]
[1724085968778,3.87268,2582.2,2581.8,6.23324]
[1724085969007,3.87268,2582.2,2581.8,3.87324]
[1724085969391,3.87268,2582.2,2581.7,3.0]
[1724085969602,6.81954,2582.1,2581.6,6.24996]
[1724085969790,6.81954,2582.1,2581.7,3.0]
[1724085970198,3.87297,2582.0,2581.7,3.0]
[1724085971130,6.81952,2582.1,2581.7,3.0]
[1724085971476,6.81952,2582.1,2581.7,6.87339]
[1724085973249,2.9467,2582.1,2581.7,6.87339]
[1724085973453,6.22222,2582.3,2581.8,3.87313]
[1724085973599,6.22222,2582.3,2581.8,6.34333]
[1724085974105,2.3497,2582.3,2581.9,3.87299]
[1724085974304,2.02388982,2582.5,2582.1,3.87273]
[1724085974523,2.02388982,2582.5,2582.2,3.87259]
[1724085974816,6.26059,2582.6,2582.1,3.87273]
[1724085974817,8.28259327,2582.6,2582.1,7.74545]
[1724085975001,8.28259327,2582.6,2582.2,3.8726]
[1724085975343,8.28257327,2582.6,2582.2,3.8726]
[1724085975916,0.55,2582.5,2582.2,3.8726]
[1724085977347,2.02203327,2582.6,2582.1,2.3238]
[1724085977646,2.4374,2582.8,2582.1,2.3238]
[1724085977647,4.45943327,2582.8,2582.4,3.87235]
[1724085977855,4.45943327,2582.8,2582.4,3.87228]
[1724085978367,2.02203327,2582.8,2582.5,3.87215]
[1724085979232,2.02207298,2582.8,2582.5,3.87215]
[1724085979453,2.02207298,2582.8,2582.6,3.87206]
[1724085979653,5.89355298,2583.0,2582.5,3.87219]
[1724085979804,5.89355298,2583.0,2582.4,4.3214756]
[1724085979805,4.42163,2582.9,2582.4,3.87228]
[1724085980004,6.44370298,2582.9,2582.4,3.87228]
[1724085980433,10.31540298,2582.9,2582.4,3.87235]
[1724085980711,6.44370298,2582.9,2582.4,3.87235]
[1724085981021,5.89385298,2582.8,2582.4,3.87235]
[1724085981219,0.55,2582.9,2582.5,3.87215]
[1724085981220,6.44369298,2582.9,2582.5,3.87215]
[1724085981530,2.02207298,2582.8,2582.5,3.87215]
[1724085982288,2.02207298,2582.9,2582.7,3.87188]
[1724085982434,2.02207298,2583.0,2582.7,3.87188]
[1724085982968,2.02207298,2583.0,2582.6,3.87204]
[1724085983115,2.2724,2582.9,2582.5,3.87213]
[1724085983318,2.2724,2582.6,2582.1,3.0]
[1724085983522,0.55,2582.5,2582.1,6.87272]
[1724085983893,4.42222,2582.5,2582.1,6.87272]
[1724085988038,0.55,2582.5,2582.1,6.87272]
[1724085989272,2.0214371,2582.7,2582.4,3.87232]
[1724085989473,2.0214371,2582.9,2582.6,3.87206]
[1724085989675,2.0214371,2583.0,2582.7,3.87191]
[1724085989879,2.0214371,2582.9,2582.6,3.87204]
[1724085990638,3.87274,2582.2,2581.6,6.18456]
[1724085990865,3.87281,2582.1,2581.6,6.18459]
[1724085991126,5.8933587,2582.2,2581.7,3.8734]
[1724085991797,9.7661287,2582.2,2581.7,3.8734]
[1724085991975,9.7661187,2582.2,2581.7,3.8734]
[1724085992301,5.8936187,2582.1,2581.6,2.3111]
[1724085992605,3.87324,2581.9,2581.4,6.2689289]
[1724085993216,3.87324,2581.9,2581.5,3.0]
[1724085993726,3.87323,2581.9,2581.5,3.0]
[1724085994012,3.87356,2581.6,2581.4,2.3950889]
[1724085994558,3.87343,2581.7,2581.4,2.3950889]
[1724085994861,3.87339,2581.8,2581.4,2.3950889]
[1724085995060,3.87312,2581.9,2581.4,7.07712652]
[1724085995258,3.87298,2582.0,2581.5,3.87363]
[1724085995810,5.89276953,2582.0,2581.5,3.87363]
[1724085996112,3.87314,2581.9,2581.5,3.87363]
[1724085996617,4.36078953,2582.1,2581.5,3.87363]
[1724085996618,2.01978953,2582.0,2581.5,3.87363]
[1724085996909,3.87297,2582.0,2581.5,3.87363]
[1724085997121,2.01868305,2582.2,2581.7,2.2949]
[1724085997323,2.01868305,2582.2,2581.5,1.39507565]
[1724085997324,2.01868305,2582.3,2582.0,3.87296]
[1724085997614,3.87238,2582.4,2582.1,2.2949]
[1724085997615,7.74488,2582.4,2582.1,2.2949]
[1724085997916,9.76356305,2582.4,2582.1,2.2949]
[1724085998081,3.87251,2582.3,2581.9,2.2949]
[1724085998267,3.87268,2582.2,2581.9,2.2949]
[1724085998468,3.87268,2582.2,2581.6,5.2949]
[1724085998469,3.87304,2582.0,2581.6,5.2949]
[1724086000585,7.74612,2582.0,2581.6,5.2949]
[1724086000782,3.87304,2582.0,2581.6,5.2949]
[1724086001180,3.8732,2581.9,2581.6,2.2949]
[1724086001401,3.87327,2581.8,2581.4,6.4971189]
[1724086003313,3.87327,2581.8,2581.4,10.3709089]
[1724086003475,3.87327,2581.8,2581.4,6.4970789]
[1724086004122,3.87327,2581.8,2581.4,10.3708689]
[1724086004724,7.74614,2582.0,2581.4,11.70795579]
[1724086004917,5.89171731,2582.2,2581.6,3.87349]
[1724086005081,3.87275,2582.2,2581.7,6.21791]
[1724086005281,3.87275,2582.2,2581.8,3.87319]
[1724086006218,5.89127069,2582.3,2581.8,3.87316]
[1724086006775,3.87267,2582.2,2581.8,3.87316]
[1724086006981,3.87267,2582.2,2581.6,3.87349]
[1724086007209,3.87318,2581.9,2581.5,2.4965]
[1724086009137,3.87296,2582.0,2581.5,6.37012]
[1724086009427,3.87287,2582.1,2581.7,3.87339]
[1724086009985,3.87287,2582.1,2581.6,3.87347]
[1724086010524,7.74579,2582.1,2581.7,3.87338]
[1724086011032,7.74579,2582.1,2581.6,3.87354]
[1724086011619,3.87287,2582.1,2581.6,3.87354]
[1724086011850,4.31127777,2582.2,2581.5,2.4965]
[1724086012006,6.44142777,2582.1,2581.5,6.37018]
[1724086012208,3.87313,2581.9,2581.5,6.37018]
[1724086012827,3.87299,2582.0,2581.5,11.10152538]
[1724086013029,3.87284,2582.1,2581.7,3.87335]
[1724086013251,2.01867983,2582.2,2581.5,3.35416538]
[1724086013252,2.01867983,2582.2,2581.9,2.4679]
[1724086015454,2.01860384,2582.2,2581.9,2.4679]
[1724086016037,5.89127384,2582.2,2581.9,2.4679]
[1724086017462,3.87304,2582.0,2581.7,2.4905]
[1724086017646,3.87304,2582.0,2581.5,12.10130538]
[1724086017647,3.87304,2582.0,2581.5,8.22766538]
[1724086017831,3.87304,2582.0,2581.5,10.71816538]
[1724086018166,3.87326,2581.8,2581.5,10.71816538]
[1724086020169,3.87326,2581.8,2581.5,3.34816538]
[1724086020338,3.87326,2581.8,2581.5,2.4905]
[1724086020677,3.87356,2581.6,2581.4,0.1266889]
[1724086020820,7.74742,2581.5,2581.4,0.1266889]
[1724086023499,3.87356,2581.6,2581.4,0.1266889]
[1724086023707,3.8735,2581.7,2581.4,0.1266889]
[1724086024018,3.87327,2581.8,2581.4,4.0004789]
[1724086024154,3.87327,2581.8,2581.4,4.63394879]
[1724086024499,3.87345,2581.7,2581.4,0.76015879]
[1724086024670,3.87345,2581.7,2581.4,0.1266889]
[1724086025885,3.87371,2581.5,2581.4,0.1266889]
[1724086026463,7.74742,2581.5,2581.4,0.1266889]
[1724086029250,3.87371,2581.5,2581.4,0.1266889]
[1724086029454,3.87362,2581.6,2581.4,0.1266889]
[1724086029780,2.01449793,2581.7,2581.4,0.1266889]
[1724086029781,3.87348,2581.7,2581.4,0.1266889]
[1724086030116,5.88770793,2581.9,2581.6,2.3558]
[1724086030256,2.01449793,2582.0,2581.6,6.22929]
[1724086030456,9.37449793,2582.3,2582.0,3.87285]
[1724086030656,5.88687793,2582.4,2582.0,6.513635]
[1724086030880,3.87238,2582.4,2582.0,6.513635]
[1724086032580,3.87238,2582.4,2582.0,2.640785]
[1724086032809,7.74489,2582.4,2582.0,2.2535]
[1724086032999,3.87252,2582.3,2581.8,3.87318]
[1724086033158,7.74544,2582.2,2581.7,3.87339]
[1724086033363,3.87313,2581.9,2581.6,2.4829]
[1724086033589,4.42293,2582.1,2581.6,2.4829]
[1724086033900,0.55,2582.1,2581.6,6.35639]
[1724086034061,4.42289,2582.1,2581.7,3.0]
[1724086034276,3.87289,2582.1,2581.7,6.8734]
[1724086035519,3.87311,2581.9,2581.7,3.0]
[1724086035809,3.87311,2581.9,2581.6,2.4829]
[1724086036010,3.87298,2582.0,2581.6,2.4829]
[1724086036159,3.87298,2582.0,2581.6,6.35639]
[1724086036358,3.87298,2582.0,2581.7,3.0]
[1724086036647,6.86659774,2582.0,2581.5,3.8737]
[1724086036852,5.89047738,2582.0,2581.5,3.8737]
[1724086037521,3.87321,2581.9,2581.5,3.8737]
[1724086037724,3.87321,2581.9,2581.4,6.4952289]
[1724086038318,3.87321,2581.9,2581.5,3.87371]
[1724086038549,5.89046738,2582.0,2581.5,3.87361]
[1724086038751,3.87313,2581.9,2581.5,3.87361]
[1724086038962,3.87313,2581.9,2581.4,2.6213889]
[1724086039141,3.87351,2581.7,2581.4,0.1266889]
[1724086040828,3.87364,2581.6,2581.4,0.1266889]
[1724086041024,4.42371,2581.5,2581.4,0.1266889]
[1724086042729,8.29742,2581.5,2581.4,0.1266889]
[1724086043881,10.31215447,2581.5,2581.4,0.1266889]
[1724086044132,2.01473447,2581.5,2581.4,0.1266889]
[1724086044295,5.88821447,2581.7,2581.4,0.1266889]
[1724086044441,3.87356,2581.6,2581.4,0.1266889]
[1724086044788,5.88829447,2581.6,2581.4,0.1266889]
[1724086044982,3.87356,2581.6,2581.4,0.1266889]
[1724086046170,5.88837966,2581.6,2581.4,0.1266889]
[1724086046895,0.55,2581.5,2581.4,0.1266889]
[1724086047189,3.87371,2581.5,2581.4,0.1266889]
[1724086047782,0.97616697,2581.6,2581.4,0.1266889]
[1724086048139,2.01481966,2581.8,2581.5,6.3505]
[1724086048343,4.048,2582.3,2581.5,6.3505]
[1724086048344,2.01481966,2581.9,2581.7,3.8734]
[1724086048542,2.01481966,2582.0,2581.7,3.87334]
[1724086048798,6.29034359,2582.3,2581.8,3.8732]
[1724086048799,2.01481966,2582.1,2581.8,3.8732]
[1724086049002,2.01481966,2582.3,2582.0,3.87296]
[1724086049304,10.16244359,2582.5,2582.0,3.87296]
[1724086049305,2.01481966,2582.4,2582.0,3.87296]
[1724086050104,2.01464562,2582.5,2582.2,3.87264]
[1724086050320,2.01464562,2582.5,2581.9,2.4768]
[1724086050321,2.01464562,2582.6,2582.3,3.87244]
[1724086050462,2.01464562,2582.7,2582.3,3.87244]
[1724086050817,2.01464562,2582.8,2582.4,6.34907]
[1724086051104,2.01464562,2582.9,2582.6,3.87194]
[1724086051280,2.01464562,2582.9,2582.5,3.87214]
[1724086051478,6.28889474,2583.1,2582.6,3.87199]
[1724086051479,2.01464562,2583.0,2582.6,3.87199]
[1724086052525,2.01464562,2583.0,2582.6,3.87198]
[1724086052671,2.01464562,2583.2,2582.8,3.87168]
[1724086053088,5.88573562,2583.3,2582.8,3.87168]
[1724086053325,7.74224,2583.3,2582.8,3.87168]
[1724086053472,9.75688562,2583.3,2582.8,3.87168]
[1724086053674,3.87117,2583.2,2582.6,3.87192]
[1724086054599,5.88407939,2583.4,2582.4,6.34914]
[1724086054802,5.88407939,2583.4,2582.3,3.0]
[1724086054803,2.01316939,2583.4,2582.9,2.4788]
[1724086055122,3.65748627,2584.0,2582.9,2.4788]
[1724086055123,2.01316939,2583.8,2582.9,2.4788]
[1724086055342,3.87011,2583.9,2583.4,3.87078]
[1724086055725,7.74034,2583.9,2583.4,3.87078]
[1724086056053,2.01316939,2584.1,2583.5,3.87057]
[1724086056054,3.8699,2584.1,2583.5,3.87057]
[1724086056257,3.8699,2584.1,2583.6,3.87052]
[1724086056552,3.86962,2584.3,2583.4,2.4998]
[1724086056553,3.86962,2584.3,2583.8,3.87016]
[1724086057057,3.86962,2584.3,2583.7,3.87041]
[1724086057058,7.73922,2584.3,2583.7,3.87041]
[1724086057267,3.86989,2584.1,2583.5,3.87062]
[1724086057556,4.257029,2584.0,2583.5,3.87062]
[1724086058725,7.73948,2584.2,2583.6,3.87056]
[1724086058926,0.55,2584.1,2583.6,3.87056]
[1724086059274,4.4199,2584.1,2583.5,3.87062]
[1724086060027,4.4199,2584.1,2583.5,7.74126]
[1724086060226,4.4199,2584.1,2583.6,3.87056]
[1724086060554,0.55,2584.1,2583.7,3.8704]
[1724086061814,4.41982,2584.1,2583.7,3.8704]
[1724086062371,3.86929,2584.5,2583.9,2.2956]
[1724086062692,3.86975,2584.2,2583.7,3.87033]
[1724086063026,3.86962,2584.3,2583.6,6.16615]
[1724086063244,3.86975,2584.2,2583.6,6.16615]
[1724086063440,3.86975,2584.2,2583.7,3.87037]
[1724086063647,3.86962,2584.3,2583.7,3.87037]
[1724086063824,4.85067,2584.5,2583.9,3.87011]
[1724086063825,3.86922,2584.5,2583.9,3.87011]
[1724086064157,3.86952,2584.3,2583.9,3.87011]
[1724086064372,3.86922,2584.5,2584.0,3.86991]
[1724086064665,3.86903,2584.7,2584.2,3.86964]
[1724086064666,7.73803,2584.7,2584.2,3.86964]
[1724086064965,3.86908,2584.6,2584.1,6.28191]
[1724086065660,3.86924,2584.5,2584.1,2.4121]
[1724086065873,3.86938,2584.4,2583.9,11.23998]
[1724086066081,3.86924,2584.5,2583.9,11.23998]
[1724086066218,3.86944,2584.4,2583.9,7.37]
[1724086067178,3.86944,2584.4,2583.9,11.24011]
[1724086067565,7.73892,2584.4,2583.9,11.24011]
[1724086067769,3.86954,2584.3,2583.9,11.24011]
[1724086068491,3.86944,2584.4,2583.9,15.11013]
[1724086068492,3.86937,2584.4,2583.9,15.11013]
[1724086068694,3.86937,2584.4,2584.0,1.741393]
[1724086069026,3.86923,2584.5,2584.0,5.611293]
[1724086071296,7.73825,2584.6,2584.1,3.8698]
[1724086071518,3.8691,2584.6,2584.2,0.5611193]
[1724086071699,3.8691,2584.6,2583.6,1.003674]
[1724086071700,3.86997,2584.0,2583.6,1.003674]